[Event "FIDE WCCC Open-08 2024"]
[Site "Montesilvano"]
[Date "2024.11.18"]
[Round "3.48"]
[White "Hakobyan, Sos"]
[Black "Schimming, Wilhelm"]
[Result "0-1"]
[ECO "B26"]
[WhiteElo "1806"]
[BlackElo "1628"]
[PlyCount "63"]
[EventDate "2024.11.18"]
[EventType "swiss"]
[EventCountry "ITA"]
[TimeControl "5400+30"]

1. e4 {[%emt 0:00:03]} c5 {[%emt 0:00:15]} 2. Nc3 {[%emt 0:00:09]} a6 {[%emt 0:05:35]} 3. g3 {[%emt 0:00:29]} Nc6 {[%emt 0:05:13]} 4. Bg2 {[%emt 0:00:44]} Nf6 {[%emt 0:00:22]} 5. d3 {[%emt 0:00:51]} d6 {[%emt 0:21:08]} 6. h3 {[%emt 0:00:31]} g6 {[%emt 0:12:14]} 7. Be3 {[%emt 0:01:09]} Bg7 {[%emt 0:00:24]} 8. Qd2 {[%emt 0:00:26]} O-O {[%emt 0:03:45]} 9. Bh6 {[%emt 0:03:03]} Nd4 {[%emt 0:04:50]} 10. Nge2 {[%emt 0:00:36]} Bxh6 {[%emt 0:00:40]} 11. Qxh6 {[%emt 0:00:15]} Nxc2+ {[%emt 0:00:05]} 12. Kd2 {[%emt 0:00:23]} Nxa1 {[%emt 0:00:08]} 13. Rxa1 {[%emt 0:00:25]} Qb6 {[%emt 0:05:13]} 14. b3 {[%emt 0:01:47]} c4 {[%emt 0:37:38]} 15. dxc4 {[%emt 0:54:48]} Qxf2 {[%emt 0:00:00]} 16. Bh1 {[%emt 0:01:12]} Nh5 {[%emt 0:00:00]} 17. g4 {[%emt 0:01:45]} Ng3 {[%emt 0:00:00]} 18. Rg1 {[%emt 0:02:32]} Nxe2 {[%emt 0:00:00]} 19. Nxe2 {[%emt 0:00:16]} Qf6 {[%emt 0:00:00]} 20. Rc1 {[%emt 0:09:20]} Bd7 {[%emt 0:00:00]} 21. e5 {[%emt 0:15:50]} dxe5 {[%emt 0:00:00]} 22. Bxb7 {[%emt 0:00:27]} Rad8 {[%emt 0:00:00]} 23. Ke1 {[%emt 0:01:49]} Qb6 {[%emt 0:00:00]} 24. Bg2 {[%emt 0:01:43]} Bc6 {[%emt 0:00:00]} 25. Bxc6 {[%emt 0:00:22]} Qxc6 {[%emt 0:00:00]} 26. Qe3 {[%emt 0:01:01]} Qh1+ {[%emt 0:00:00]} 27. Kf2 {[%emt 0:00:23]} Qh2+ {[%emt 0:00:00]} 28. Ke1 {[%emt 0:00:19]} e4 {[%emt 0:00:00]} 29. Qxe4 {[%emt 0:02:22]} Qxh3 {[%emt 0:00:00]} 30. Rc3 {[%emt 0:00:00]} Qh4+ {[%emt 0:00:00]} 31. Rg3 {[%emt 0:00:21]} Qf6 {[%emt 0:00:00]} 32. Qc2 {[%emt 0:01:09]} 0-1

[Event "FIDE WCCC Open-08 2024"]
[Site "Montesilvano"]
[Date "2024.11.18"]
[Round "3.49"]
[White "Dzelnik, Robert"]
[Black "Glod, Peter"]
[Result "1-0"]
[ECO "C70"]
[WhiteElo "1822"]
[BlackElo "1409"]
[PlyCount "137"]
[EventDate "2024.11.18"]
[EventType "swiss"]
[EventCountry "ITA"]
[TimeControl "5400+30"]

1. e4 {[%emt 0:00:02]} e5 {[%emt 0:00:06]} 2. Nf3 {[%emt 0:00:05]} Nc6 {[%emt 0:00:10]} 3. Bb5 {[%emt 0:00:16]} a6 {[%emt 0:00:08]} 4. Ba4 {[%emt 0:00:05]} f5 {[%emt 1:32:06]} 5. d3 {[%emt 0:01:23]} fxe4 {[%emt 0:00:00]} 6. dxe4 {[%emt 0:00:12]} Bc5 {[%emt 0:00:00]} 7. O-O {[%emt 0:01:18]} Nf6 {[%emt 0:00:00]} 8. Nc3 {[%emt 0:03:12]} O-O {[%emt 0:00:00]} 9. Bb3+ {[%emt 0:00:57]} Kh8 {[%emt 0:00:00]} 10. Bg5 {[%emt 0:02:24]} d6 {[%emt 0:00:00]} 11. Nd5 {[%emt 0:02:04]} Bg4 {[%emt 0:00:00]} 12. Nxf6 {[%emt 0:01:19]} Rxf6 {[%emt 0:00:00]} 13. Bxf6 {[%emt 0:01:30]} Qxf6 {[%emt 0:00:00]} 14. h3 {[%emt 0:02:03]} Bh5 {[%emt 0:00:00]} 15. g4 {[%emt 0:03:06]} Bg6 {[%emt 0:00:00]} 16. Qe2 {[%emt 0:04:49]} Qf4 {[%emt 0:00:00]} 17. Bd5 {[%emt 0:02:59]} Qg3+ {[%emt 0:00:00]} 18. Kh1 {[%emt 0:00:17]} Qxh3+ {[%emt 0:00:00]} 19. Nh2 {[%emt 0:00:13]} Nd4 {[%emt 0:00:00]} 20. Qd3 {[%emt 0:01:33]} Qxd3 {[%emt 0:00:00]} 21. cxd3 {[%emt 0:00:08]} c6 {[%emt 0:00:00]} 22. Bb3 {[%emt 0:00:30]} Nxb3 {[%emt 0:00:00]} 23. axb3 {[%emt 0:00:49]} Bf7 {[%emt 0:00:00]} 24. f4 {[%emt 0:00:50]} Bxb3 {[%emt 0:00:00]} 25. fxe5 {[%emt 0:00:11]} dxe5 {[%emt 0:00:00]} 26. Nf3 {[%emt 0:04:48]} Bd6 {[%emt 0:00:00]} 27. Ng5 {[%emt 0:01:20]} Bc5 {[%emt 0:00:00]} 28. Nf7+ {[%emt 0:01:36]} Kg8 {[%emt 0:00:00]} 29. Nxe5 {[%emt 0:01:34]} Bd4 {[%emt 0:00:00]} 30. Nf3 {[%emt 0:01:39]} Bb6 {[%emt 0:00:00]} 31. Ra3 {[%emt 0:03:29]} Bf7 {[%emt 0:00:00]} 32. Ng5 {[%emt 0:01:06]} Rf8 {[%emt 0:00:00]} 33. Nxf7 {[%emt 0:00:36]} Rxf7 {[%emt 0:00:00]} 34. Rxf7 {[%emt 0:00:07]} Kxf7 {[%emt 0:00:00]} 35. Rb3 {[%emt 0:59:30]} Bd4 {[%emt 0:00:00]} 36. Rxb7+ {[%emt 0:00:00]} Kg6 {[%emt 0:00:00]} 37. Kg2 {[%emt 0:00:00]} Kg5 {[%emt 0:16:30]} 38. Re7 {[%emt 0:00:00]} Kxg4 {[%emt 0:00:00]} 39. e5 {[%emt 0:00:00]} Bxb2 {[%emt 0:00:00]} 40. e6 {[%emt 0:00:00]} Kf5 {[%emt 0:00:00]} 41. Rb7 {[%emt 0:00:00]} Kxe6 {[%emt 0:00:00]} 42. Rxb2 {[%emt 0:00:00]} Kd5 {[%emt 0:00:00]} 43. Rb6 {[%emt 0:00:00]} a5 {[%emt 0:00:00]} 44. Ra6 {[%emt 0:00:00]} Kd4 {[%emt 0:00:00]} 45. Rxc6 {[%emt 0:00:00]} Kxd3 {[%emt 0:00:00]} 46. Ra6 {[%emt 0:00:00]} Ke4 {[%emt 0:00:00]} 47. Ra7 {[%emt 0:00:00]} a4 {[%emt 0:00:00]} 48. Rxg7 {[%emt 0:00:00]} h5 {[%emt 0:00:00]} 49. Ra7 {[%emt 0:00:00]} Kf5 {[%emt 0:00:00]} 50. Rxa4 {[%emt 0:00:00]} Kg5 {[%emt 0:00:00]} 51. Kh3 {[%emt 0:00:00]} Kg6 {[%emt 0:00:00]} 52. Kh4 {[%emt 0:00:00]} Kf5 {[%emt 0:00:00]} 53. Kxh5 {[%emt 0:00:00]} Ke5 {[%emt 0:00:00]} 54. Kg5 {[%emt 0:00:00]} Kd5 {[%emt 0:00:00]} 55. Kf5 {[%emt 0:00:00]} Kc5 {[%emt 0:00:00]} 56. Ke5 {[%emt 0:00:00]} Kb5 {[%emt 0:00:00]} 57. Rh4 {[%emt 0:00:00]} Kc5 {[%emt 0:00:00]} 58. Rd4 {[%emt 0:00:00]} Kc6 {[%emt 0:00:00]} 59. Rd5 {[%emt 0:00:00]} Kb6 {[%emt 0:00:00]} 60. Kd6 {[%emt 0:00:00]} Kb7 {[%emt 0:00:00]} 61. Rc5 {[%emt 0:00:00]} Kb6 {[%emt 0:00:00]} 62. Kd5 {[%emt 0:00:00]} Kb7 {[%emt 0:00:00]} 63. Rc6 {[%emt 0:00:00]} Ka7 {[%emt 0:00:00]} 64. Kd6 {[%emt 0:00:00]} Kb7 {[%emt 0:00:00]} 65. Kd7 {[%emt 0:00:00]} Kb8 {[%emt 0:00:00]} 66. Rc7 {[%emt 0:00:00]} Ka8 {[%emt 0:00:00]} 67. Kc6 {[%emt 0:00:00]} Kb8 {[%emt 0:00:00]} 68. Kb6 {[%emt 0:00:00]} Ka8 {[%emt 0:00:00]} 69. Rc8# {[%emt 0:00:00]} 1-0